[Event "DVM U16w 2024"]
[Site "Neumuenster"]
[Date "2024.12.29"]
[Round "6"]
[White "Ottlik, Marie"]
[Black "Siegel, Irene"]
[Result "1/2-1/2"]
[ECO "C54"]
[WhiteElo "1639"]
[BlackElo "1612"]
[Annotator "NA RC"]
[PlyCount "156"]
[EventDate "2024.12.23"]
[EventType "team-tourn"]
[EventRounds "7"]
[EventCountry "GER"]
[SourceTitle "playchess.com"]
[Source "ChessBase"]
[SourceQuality "1"]
[TimeControl "40/5400+30:1800+30"]

1. e4 {[%emt 0:00:04]} e5 {[%emt 0:00:06]} 2. Nf3 {[%emt 0:00:09]} Nc6 {[%emt 0:00:08]} 3. Bc4 {[%emt 0:00:12]} Bc5 {[%emt 0:00:10]} 4. c3 {[%emt 0:00:22]} Nf6 {[%emt 0:00:14]} 5. d3 {[%emt 0:00:08]} d6 {[%emt 0:00:33]} 6. a4 {[%emt 0:00:35]} a6 {[%emt 0:00:08]} 7. Nbd2 {[%emt 0:01:23]} O-O {[%emt 0:01:27]} 8. O-O {[%emt 0:00:20]} Be6 {[%emt 0:01:23]} 9. Re1 {[%emt 0:01:32]} Re8 {[%emt 0:01:16]} 10. Bb3 {[%emt 0:03:22]} h6 {[%emt 0:00:36]} 11. Nf1 {[%emt 0:01:50]} Ba7 {[%emt 0:07:30]} 12. Ng3 {[%emt 0:06:02]} d5 {[%emt 0:17:36]} 13. exd5 {[%emt 0:05:46]} Bxd5 {[%emt 0:00:16]} 14. Bxd5 {[%emt 0:01:10]} Qxd5 {[%emt 0:00:25]} 15. Be3 {[%emt 0:10:38]} Rad8 {[%emt 0:11:42]} 16. Bxa7 {[%emt 0:06:58]} Nxa7 {[%emt 0:00:11]} 17. d4 {[%emt 0:00:42]} exd4 {[%emt 0:03:56]} 18. Nxd4 {[%emt 0:02:12]} Nc6 {[%emt 0:01:23]} 19. Nxc6 {[%emt 0:05:38]} Qxc6 {[%emt 0:00:05]} 20. Qc2 {[%emt 0:02:18]} Nd5 {[%emt 0:06:32]} 21. Re4 {[%emt 0:11:32]} Rxe4 {[%emt 0:04:18]} 22. Qxe4 {[%emt 0:04:10]} Re8 {[%emt 0:10:38]} 23. Qd4 {[%emt 0:05:30]} Nf6 {[%emt 0:02:29]} 24. Nf5 {[%emt 0:04:01]} Qe4 {[%emt 0:06:30]} 25. Qxe4 {[%emt 0:02:23]} Rxe4 {[%emt 0:00:07]} 26. Kf1 {[%emt 0:00:46]} Nd5 {[%emt 0:06:24]} 27. a5 {[%emt 0:05:24]} Re5 {[%emt 0:00:46]} 28. Nd4 {[%emt 0:02:19]} Nf4 {[%emt 0:00:57]} 29. b4 {[%emt 0:01:25]} Nd3 {[%emt 0:04:06]} 30. Rd1 {[%emt 0:01:39]} Nb2 {[%emt 0:00:39]} 31. Re1 {[%emt 0:01:34]} Rxe1+ {[%emt 0:02:34]} 32. Kxe1 {[%emt 0:00:14]} g6 {[%emt 0:00:12]} 33. h3 {[%emt 0:04:03]} Kf8 {[%emt 0:04:18]} 34. Kd2 {[%emt 0:02:29]} Ke7 {[%emt 0:00:38]} 35. Kc2 {[%emt 0:00:18]} Nc4 {[%emt 0:00:07]} 36. Kd3 {[%emt 0:00:31]} Ne5+ {[%emt 0:00:16]} 37. Ke4 {[%emt 0:01:57]} Kd6 {[%emt 0:00:47]} 38. g4 {[%emt 0:02:12]} Nd7 {[%emt 0:02:35]} 39. Nf3 {[%emt 0:02:31]} Nf6+ {[%emt 0:04:00]} 40. Kd4 {[%emt 0:00:16]} Nd5 {[%emt 0:01:23]} 41. Ne5 {[%emt 0:09:09]} Ke6 {[%emt 0:00:09]} 42. Nd3 {[%emt 0:00:37]} b6 {[%emt 0:11:51]} 43. axb6 {[%emt 0:06:56]} cxb6 {[%emt 0:00:55]} 44. c4 {[%emt 0:00:45]} Ne7 {[%emt 0:00:40]} 45. c5 {[%emt 0:04:32]} Nc6+ {[%emt 0:00:13]} 46. Ke4 {[%emt 0:00:58]} b5 {[%emt 0:00:56]} 47. Nf4+ {[%emt 0:00:45]} Kd7 {[%emt 0:00:30]} 48. Nd5 {[%emt 0:01:00]} a5 {[%emt 0:03:12]} 49. bxa5 {[%emt 0:02:34]} Nxa5 {[%emt 0:00:06]} 50. Nb4 {[%emt 0:00:43]} Nc6 {[%emt 0:06:59]} 51. Nd3 {[%emt 0:01:14]} Ke6 {[%emt 0:04:19]} 52. Nf4+ {[%emt 0:00:55]} Kd7 {[%emt 0:00:08]} 53. h4 {[%emt 0:01:53]} b4 {[%emt 0:01:47]} 54. Nd3 {[%emt 0:03:22]} b3 {[%emt 0:00:57]} 55. Nb2 {[%emt 0:00:59]} Ke6 {[%emt 0:00:47]} 56. f3 {[%emt 0:02:03]} f5+ {[%emt 0:00:36]} 57. gxf5+ {[%emt 0:00:15]} gxf5+ {[%emt 0:00:05]} 58. Ke3 {[%emt 0:01:16]} Kd5 {[%emt 0:01:32]} 59. Kf4 {[%emt 0:00:21]} Nd4 {[%emt 0:00:09]} 60. h5 {[%emt 0:00:48]} Ke6 {[%emt 0:02:57]} 61. Ke3 {[%emt 0:01:33]} Ke5 {[%emt 0:00:37]} 62. Nd3+ {[%emt 0:00:07]} Kd5 {[%emt 0:00:08]} 63. Kf4 {[%emt 0:00:11]} Kc4 {[%emt 0:00:50]} 64. Nb2+ {[%emt 0:00:11]} Kc3 {[%emt 0:01:46]} 65. Na4+ {[%emt 0:00:15]} Kc2 {[%emt 0:00:33]} 66. c6 {[%emt 0:00:25]} Nxc6 {[%emt 0:00:41]} 67. Kxf5 {[%emt 0:00:06]} Nd4+ {[%emt 0:00:25]} 68. Kg6 {[%emt 0:00:09]} Nxf3 {[%emt 0:00:41]} 69. Kxh6 {[%emt 0:00:04]} Ne5 {[%emt 0:00:13]} 70. Kg5 {[%emt 0:00:13]} Nf7+ {[%emt 0:00:12]} 71. Kg6 {[%emt 0:00:38]} Ne5+ {[%emt 0:00:06]} 72. Kf6 {[%emt 0:00:34]} Ng4+ {[%emt 0:00:20]} 73. Kg5 {[%emt 0:00:01]} Ne5 {[%emt 0:00:02]} 74. Kf5 {[%emt 0:01:07]} Nf7 {[%emt 0:00:21]} 75. Kf6 {[%emt 0:00:34]} Nh6 {[%emt 0:00:07]} 76. Kg6 {[%emt 0:00:20]} Ng4 {[%emt 0:00:07]} 77. Kg5 {[%emt 0:00:15]} Ne5 {[%emt 0:00:10]} 78. h6 {[%emt 0:00:45]} Nf7+ {[%emt 0:00:04]} 1/2-1/2

[Event "DVM U16w 2024"]
[Site "Neumuenster"]
[Date "2024.12.29"]
[Round "6"]
[White "Hladeniuk, Yelyzaveta"]
[Black "Vogt, Luna"]
[Result "1/2-1/2"]
[ECO "D36"]
[WhiteElo "1630"]
[BlackElo "1735"]
[Annotator "NA RC"]
[PlyCount "86"]
[EventDate "2024.12.23"]
[EventType "team-tourn"]
[EventRounds "7"]
[EventCountry "GER"]
[SourceTitle "playchess.com"]
[Source "ChessBase"]
[SourceQuality "1"]
[TimeControl "40/5400+30:1800+30"]

1. d4 {[%emt 0:00:03]} Nf6 {[%emt 0:00:05]} 2. c4 {[%emt 0:00:05]} e6 {[%emt 0:00:07]} 3. Nc3 {[%emt 0:00:12]} d5 {[%emt 0:00:05]} 4. cxd5 {[%emt 0:00:14]} exd5 {[%emt 0:00:06]} 5. Bg5 {[%emt 0:00:10]} Be7 {[%emt 0:00:19]} 6. Qc2 {[%emt 0:00:28]} c6 {[%emt 0:00:19]} 7. e3 {[%emt 0:00:10]} Nbd7 {[%emt 0:00:47]} 8. Bd3 {[%emt 0:00:32]} h6 {[%emt 0:00:20]} 9. Bh4 {[%emt 0:00:30]} O-O {[%emt 0:00:27]} 10. Nf3 {[%emt 0:00:19]} Re8 {[%emt 0:01:10]} 11. O-O {[%emt 0:00:16]} Nf8 {[%emt 0:03:09]} 12. a3 {[%emt 0:00:31]} Ne6 {[%emt 0:00:47]} 13. b4 {[%emt 0:00:26]} Bd7 {[%emt 0:00:52]} 14. Ne5 {[%emt 0:02:43]} Ng5 {[%emt 0:06:32]} 15. Bxg5 {[%emt 0:02:47]} hxg5 {[%emt 0:00:10]} 16. Na4 {[%emt 0:04:12]} Bd6 {[%emt 0:02:49]} 17. Nxf7 {[%emt 0:01:33]} Qc7 {[%emt 0:04:14]} 18. Nxd6 {[%emt 0:00:28]} Qxd6 {[%emt 0:00:11]} 19. Bf5 {[%emt 0:01:13]} Rad8 {[%emt 0:03:26]} 20. Nc5 {[%emt 0:02:49]} Qc7 {[%emt 0:10:54]} 21. Nxd7 {[%emt 0:01:25]} Nxd7 {[%emt 0:00:17]} 22. Bxd7 {[%emt 0:00:56]} Rxd7 {[%emt 0:00:33]} 23. Qg6 {[%emt 0:00:23]} Qd8 {[%emt 0:00:16]} 24. a4 {[%emt 0:00:59]} Rd6 {[%emt 0:00:45]} 25. Qd3 {[%emt 0:00:54]} Rh6 {[%emt 0:01:04]} 26. b5 {[%emt 0:00:46]} Qd6 {[%emt 0:01:01]} 27. g3 {[%emt 0:00:20]} Qe6 {[%emt 0:02:24]} 28. Ra2 {[%emt 0:01:42]} g4 {[%emt 0:06:36]} 29. bxc6 {[%emt 0:00:48]} Qxc6 {[%emt 0:01:51]} 30. Qb5 {[%emt 0:00:34]} Kf7 {[%emt 0:05:03]} 31. Qxc6 {[%emt 0:01:05]} Rxc6 {[%emt 0:00:18]} 32. Rb1 {[%emt 0:00:24]} Re7 {[%emt 0:02:20]} 33. Rb5 {[%emt 0:01:10]} Ke6 {[%emt 0:01:03]} 34. Rab2 {[%emt 0:02:08]} Rcc7 {[%emt 0:06:55]} 35. a5 {[%emt 0:01:28]} Red7 {[%emt 0:00:38]} 36. Ra2 {[%emt 0:00:44]} Kf5 {[%emt 0:01:32]} 37. Kg2 {[%emt 0:01:00]} Ke4 {[%emt 0:00:56]} 38. Rb1 {[%emt 0:01:55]} Rf7 {[%emt 0:01:55]} 39. Rab2 {[%emt 0:00:45]} g5 {[%emt 0:04:29]} 40. Rb5 {[%emt 0:04:09]} Rc2 {[%emt 0:06:18]} 41. Rf1 {[%emt 0:31:27]} Ra2 {[%emt 0:43:21]} 42. Rc5 {[%emt 0:00:58]} a6 {[%emt 0:02:26]} 43. Kg1 {[%emt 0:01:05]} Rf6 {[%emt 0:07:12]} 1/2-1/2

[Event "DVM U16w 2024"]
[Site "Neumuenster"]
[Date "2024.12.29"]
[Round "6"]
[White "Christiansen, Jana-Marie"]
[Black "Stepanjan, Marianne"]
[Result "1/2-1/2"]
[ECO "E61"]
[WhiteElo "1602"]
[BlackElo "1779"]
[Annotator "NA RC"]
[PlyCount "52"]
[EventDate "2024.12.23"]
[EventType "team-tourn"]
[EventRounds "7"]
[EventCountry "GER"]
[SourceTitle "playchess.com"]
[Source "ChessBase"]
[SourceQuality "1"]
[TimeControl "40/5400+30:1800+30"]

1. c4 {[%emt 0:00:01]} Nf6 {[%emt 0:00:04]} 2. g3 {[%emt 0:00:10]} g6 {[%emt 0:00:03]} 3. Bg2 {[%emt 0:00:09]} Bg7 {[%emt 0:00:07]} 4. Nc3 {[%emt 0:00:20]} O-O {[%emt 0:00:04]} 5. d4 {[%emt 0:00:54]} d6 {[%emt 0:00:07]} 6. e3 {[%emt 0:00:47]} Nbd7 {[%emt 0:00:34]} 7. Nge2 {[%emt 0:00:33]} e5 {[%emt 0:01:20]} 8. O-O {[%emt 0:02:17]} Re8 {[%emt 0:03:24]} 9. b3 {[%emt 0:04:07]} exd4 {[%emt 0:13:26]} 10. exd4 {[%emt 0:00:26]} Nf8 {[%emt 0:06:21]} 11. Re1 {[%emt 0:06:04]} c6 {[%emt 0:03:03]} 12. h3 {[%emt 0:07:19]} h5 {[%emt 0:05:45]} 13. Be3 {[%emt 0:07:17]} Bf5 {[%emt 0:02:20]} 14. Nf4 {[%emt 0:03:13]} Ne4 {[%emt 0:09:11]} 15. Nxe4 {[%emt 0:05:15]} Bxe4 {[%emt 0:00:08]} 16. Qd2 {[%emt 0:00:37]} Bxg2 {[%emt 0:04:04]} 17. Kxg2 {[%emt 0:00:50]} Ne6 {[%emt 0:01:41]} 18. Rac1 {[%emt 0:05:58]} Nxf4+ {[%emt 0:02:28]} 19. Bxf4 {[%emt 0:01:12]} Qd7 {[%emt 0:00:41]} 20. c5 {[%emt 0:11:21]} dxc5 {[%emt 0:03:54]} 21. dxc5 {[%emt 0:00:12]} Qxd2 {[%emt 0:03:30]} 22. Bxd2 {[%emt 0:00:07]} Be5 {[%emt 0:07:15]} 23. Be3 {[%emt 0:03:45]} Rad8 {[%emt 0:01:11]} 24. Red1 {[%emt 0:01:06]} Bb2 {[%emt 0:04:58]} 25. Rb1 {[%emt 0:00:43]} Be5 {[%emt 0:00:49]} 26. Rbc1 {[%emt 0:01:20]} Bb2 {[%emt 0:02:07]} 1/2-1/2

[Event "DVM U16w 2024"]
[Site "Neumuenster"]
[Date "2024.12.29"]
[Round "6"]
[White "Ignatova, Gabriela"]
[Black "Dhanasekaran Meenambigai, Diya"]
[Result "1-0"]
[ECO "B10"]
[WhiteElo "1595"]
[BlackElo "1568"]
[Annotator "NA RC"]
[PlyCount "77"]
[EventDate "2024.12.23"]
[EventType "team-tourn"]
[EventRounds "7"]
[EventCountry "GER"]
[SourceTitle "playchess.com"]
[Source "ChessBase"]
[SourceQuality "1"]
[TimeControl "40/5400+30:1800+30"]

1. e4 {[%emt 0:00:03]} c6 {[%emt 0:00:05]} 2. c4 {[%emt 0:00:58]} d5 {[%emt 0:00:44]} 3. exd5 {[%emt 0:00:44]} cxd5 {[%emt 0:00:06]} 4. cxd5 {[%emt 0:00:07]} Nf6 {[%emt 0:00:49]} 5. Bb5+ {[%emt 0:01:35]} Nbd7 {[%emt 0:00:53]} 6. Nc3 {[%emt 0:01:38]} a6 {[%emt 0:00:58]} 7. Qa4 {[%emt 0:02:32]} g6 {[%emt 0:00:38]} 8. Nf3 {[%emt 0:04:31]} Bg7 {[%emt 0:01:00]} 9. O-O {[%emt 0:04:53]} O-O {[%emt 0:00:42]} 10. Bxd7 {[%emt 0:00:11]} Bxd7 {[%emt 0:01:18]} 11. Qb3 {[%emt 0:00:09]} b5 {[%emt 0:01:16]} 12. Ne5 {[%emt 0:02:55]} Qc7 {[%emt 0:06:30]} 13. d4 {[%emt 0:02:30]} Ng4 {[%emt 0:03:07]} 14. Nxg4 {[%emt 0:03:49]} Bxg4 {[%emt 0:00:22]} 15. Be3 {[%emt 0:01:24]} Qb7 {[%emt 0:03:53]} 16. Rac1 {[%emt 0:09:22]} Rfd8 {[%emt 0:06:54]} 17. h3 {[%emt 0:02:30]} Bf5 {[%emt 0:01:07]} 18. Rfd1 {[%emt 0:15:30]} Rac8 {[%emt 0:11:17]} 19. a3 {[%emt 0:05:45]} a5 {[%emt 0:05:48]} 20. Qxb5 {[%emt 0:02:12]} Qxb5 {[%emt 0:00:46]} 21. Nxb5 {[%emt 0:00:34]} Rxd5 {[%emt 0:00:27]} 22. Rxc8+ {[%emt 0:01:34]} Bxc8 {[%emt 0:00:11]} 23. Nc3 {[%emt 0:03:17]} Rd7 {[%emt 0:04:23]} 24. Rd2 {[%emt 0:01:14]} Bb7 {[%emt 0:01:37]} 25. Na4 {[%emt 0:05:19]} Bc6 {[%emt 0:03:42]} 26. Rc2 {[%emt 0:06:51]} Rc7 {[%emt 0:04:56]} 27. d5 {[%emt 0:01:46]} Bxa4 {[%emt 0:07:17]} 28. Rxc7 {[%emt 0:00:08]} Bxb2 {[%emt 0:00:08]} 29. Ra7 {[%emt 0:01:07]} Kg7 {[%emt 0:01:28]} 30. Rxa5 {[%emt 0:02:53]} Bd7 {[%emt 0:00:50]} 31. Bc5 {[%emt 0:00:37]} Kf6 {[%emt 0:01:31]} 32. Ra7 {[%emt 0:00:09]} Bf5 {[%emt 0:00:47]} 33. Bxe7+ {[%emt 0:00:17]} Ke5 {[%emt 0:00:25]} 34. d6 {[%emt 0:00:42]} Ke6 {[%emt 0:01:53]} 35. Bf8 {[%emt 0:03:31]} Bf6 {[%emt 0:01:18]} 36. d7 {[%emt 0:01:29]} Bd8 {[%emt 0:00:28]} 37. Bb4 {[%emt 0:00:11]} Kd5 {[%emt 0:00:50]} 38. Ba5 {[%emt 0:00:16]} Bxd7 {[%emt 0:00:52]} 39. Rxd7+ {[%emt 0:00:14]} 1-0

[Event "DVM U16w 2024"]
[Site "Neumuenster"]
[Date "2024.12.29"]
[Round "6"]
[White "Goeb, Franziska"]
[Black "Czaeczine, Laura"]
[Result "0-1"]
[ECO "C54"]
[WhiteElo "1572"]
[BlackElo "1787"]
[Annotator "NA RC"]
[PlyCount "116"]
[EventDate "2024.12.23"]
[EventType "team-tourn"]
[EventRounds "7"]
[EventCountry "GER"]
[SourceTitle "playchess.com"]
[Source "ChessBase"]
[SourceQuality "1"]
[TimeControl "40/5400+30:1800+30"]

1. e4 {[%emt 0:00:01]} e5 {[%emt 0:00:06]} 2. Nf3 {[%emt 0:00:03]} Nc6 {[%emt 0:00:04]} 3. Bc4 {[%emt 0:00:05]} Nf6 {[%emt 0:00:04]} 4. d3 {[%emt 0:00:04]} Bc5 {[%emt 0:01:09]} 5. c3 {[%emt 0:00:06]} d6 {[%emt 0:01:58]} 6. Nbd2 {[%emt 0:02:30]} a6 {[%emt 0:01:30]} 7. Bb3 {[%emt 0:00:27]} O-O {[%emt 0:03:30]} 8. O-O {[%emt 0:01:27]} Bg4 {[%emt 0:01:43]} 9. h3 {[%emt 0:01:41]} Bh5 {[%emt 0:00:22]} 10. Re1 {[%emt 0:00:47]} Ba7 {[%emt 0:03:19]} 11. Bc2 {[%emt 0:04:26]} Re8 {[%emt 0:03:58]} 12. Nf1 {[%emt 0:02:57]} d5 {[%emt 0:04:46]} 13. Qe2 {[%emt 0:02:36]} h6 {[%emt 0:04:29]} 14. Ng3 {[%emt 0:07:43]} Bg6 {[%emt 0:05:18]} 15. Be3 {[%emt 0:16:59]} d4 {[%emt 0:05:10]} 16. Bc1 {[%emt 0:05:40]} Nh5 {[%emt 0:05:20]} 17. Nf5 {[%emt 0:07:46]} dxc3 {[%emt 0:04:12]} 18. bxc3 {[%emt 0:07:43]} Bxf5 {[%emt 0:00:49]} 19. exf5 {[%emt 0:00:27]} Ng3 {[%emt 0:02:03]} 20. Qd1 {[%emt 0:09:13]} Nxf5 {[%emt 0:01:41]} 21. d4 {[%emt 0:02:46]} Qf6 {[%emt 0:03:08]} 22. Qd3 {[%emt 0:04:09]} g6 {[%emt 0:02:53]} 23. g4 {[%emt 0:06:21]} Nh4 {[%emt 0:02:58]} 24. Nxh4 {[%emt 0:01:12]} Qxh4 {[%emt 0:00:09]} 25. Bb3 {[%emt 0:01:59]} Qf6 {[%emt 0:04:38]} 26. Be3 {[%emt 0:04:09]} exd4 {[%emt 0:01:04]} 27. cxd4 {[%emt 0:00:50]} Nxd4 {[%emt 0:00:53]} 28. Bxd4 {[%emt 0:01:09]} Bxd4 {[%emt 0:00:13]} 29. Rxe8+ {[%emt 0:00:31]} Rxe8 {[%emt 0:00:05]} 30. Rf1 {[%emt 0:00:14]} Re1 {[%emt 0:06:12]} 31. Qc2 {[%emt 0:02:16]} Rxf1+ {[%emt 0:02:34]} 32. Kxf1 {[%emt 0:00:03]} c5 {[%emt 0:00:32]} 33. Qe2 {[%emt 0:02:45]} Kg7 {[%emt 0:01:06]} 34. Ke1 {[%emt 0:02:26]} Qf4 {[%emt 0:01:52]} 35. Bd5 {[%emt 0:02:51]} Qc1+ {[%emt 0:00:29]} 36. Qd1 {[%emt 0:00:14]} Bxf2+ {[%emt 0:00:10]} 37. Ke2 {[%emt 0:00:25]} Qxd1+ {[%emt 0:01:59]} 38. Kxd1 {[%emt 0:00:07]} b6 {[%emt 0:00:37]} 39. Kc2 {[%emt 0:00:23]} f5 {[%emt 0:00:52]} 40. Kd3 {[%emt 0:00:48]} b5 {[%emt 0:03:20]} 41. Bb7 {[%emt 0:31:05]} a5 {[%emt 0:30:08]} 42. Bc6 {[%emt 0:00:15]} b4 {[%emt 0:01:03]} 43. Kc4 {[%emt 0:00:00]} Kf6 {[%emt 0:00:00]} 44. Kb5 {[%emt 0:00:00]} f4 {[%emt 0:00:00]} 45. Kxa5 {[%emt 0:00:00]} Kg5 {[%emt 0:00:00]} 46. Kb5 {[%emt 0:00:00]} Kh4 {[%emt 0:00:00]} 47. Bg2 {[%emt 0:00:00]} Kg3 {[%emt 0:00:00]} 48. Bf1 {[%emt 0:00:00]} Bd4 {[%emt 0:00:00]} 49. Kc4 {[%emt 0:00:00]} f3 {[%emt 0:00:00]} 50. Kb3 {[%emt 0:00:00]} Kf2 {[%emt 0:00:00]} 51. Bd3 {[%emt 0:00:00]} g5 {[%emt 0:00:00]} 52. Kc2 {[%emt 0:00:00]} Ke1 {[%emt 0:00:00]} 53. Kc1 {[%emt 0:00:00]} f2 {[%emt 0:00:00]} 54. Kc2 {[%emt 0:00:00]} f1=Q {[%emt 0:00:00]} 55. Bxf1 {[%emt 0:00:00]} Kxf1 {[%emt 0:00:00]} 56. Kd2 {[%emt 0:00:00]} Kg2 {[%emt 0:00:00]} 57. Ke2 {[%emt 0:00:05]} Kxh3 {[%emt 0:00:00]} 58. Kf3 {[%emt 0:00:13]} c4 {[%emt 0:00:00]} 0-1

[Event "DVM U16w 2024"]
[Site "Neumuenster"]
[Date "2024.12.29"]
[Round "6"]
[White "Mehner, Clara"]
[Black "Krasikova, Milana"]
[Result "1-0"]
[ECO "B44"]
[WhiteElo "1572"]
[BlackElo "1561"]
[Annotator "NA RC"]
[PlyCount "83"]
[EventDate "2024.12.23"]
[EventType "team-tourn"]
[EventRounds "7"]
[EventCountry "GER"]
[SourceTitle "playchess.com"]
[Source "ChessBase"]
[SourceQuality "1"]
[TimeControl "40/5400+30:1800+30"]

1. e4 {[%emt 0:00:01]} c5 {[%emt 0:00:05]} 2. Nf3 {[%emt 0:00:07]} e6 {[%emt 0:00:06]} 3. d4 {[%emt 0:00:07]} cxd4 {[%emt 0:00:06]} 4. Nxd4 {[%emt 0:00:07]} Nc6 {[%emt 0:00:14]} 5. c4 {[%emt 0:00:35]} Nf6 {[%emt 0:04:55]} 6. f3 {[%emt 0:04:57]} Bc5 {[%emt 0:13:49]} 7. Nb3 {[%emt 0:03:59]} Nxe4 {[%emt 0:16:12]} 8. Qe2 {[%emt 0:29:52]} Qh4+ {[%emt 0:05:20]} 9. g3 {[%emt 0:02:12]} Nxg3 {[%emt 0:01:12]} 10. hxg3 {[%emt 0:00:23]} Bb4+ {[%emt 0:00:35]} 11. Bd2 {[%emt 0:01:37]} Bxd2+ {[%emt 0:01:08]} 12. N1xd2 {[%emt 0:00:18]} Qxh1 {[%emt 0:00:11]} 13. O-O-O {[%emt 0:01:00]} b6 {[%emt 0:02:25]} 14. Ne4 {[%emt 0:04:46]} Ba6 {[%emt 0:12:50]} 15. Ng5 {[%emt 0:07:36]} Qh6 {[%emt 0:03:08]} 16. Qd2 {[%emt 0:04:03]} O-O {[%emt 0:03:59]} 17. Bd3 {[%emt 0:03:42]} f5 {[%emt 0:12:23]} 18. f4 {[%emt 0:03:06]} Rad8 {[%emt 0:03:38]} 19. Qg2 {[%emt 0:02:14]} Qf6 {[%emt 0:01:44]} 20. Rh1 {[%emt 0:05:48]} h6 {[%emt 0:00:14]} 21. Nf3 {[%emt 0:00:47]} d5 {[%emt 0:01:01]} 22. Qe2 {[%emt 0:02:45]} Nb4 {[%emt 0:01:08]} 23. Nbd4 {[%emt 0:02:43]} Nxd3+ {[%emt 0:01:26]} 24. Qxd3 {[%emt 0:00:07]} Bxc4 {[%emt 0:01:27]} 25. Qa3 {[%emt 0:00:23]} a5 {[%emt 0:01:18]} 26. Kb1 {[%emt 0:01:18]} g5 {[%emt 0:02:04]} 27. fxg5 {[%emt 0:01:04]} hxg5 {[%emt 0:00:20]} 28. Qe3 {[%emt 0:01:04]} e5 {[%emt 0:03:00]} 29. Nc2 {[%emt 0:03:25]} d4 {[%emt 0:01:28]} 30. Qd2 {[%emt 0:00:32]} g4 {[%emt 0:02:24]} 31. Ng5 {[%emt 0:02:56]} e4 {[%emt 0:01:03]} 32. Nh7 {[%emt 0:00:43]} Qg7 {[%emt 0:01:47]} 33. Nxf8 {[%emt 0:00:26]} Kxf8 {[%emt 0:00:07]} 34. Rh5 {[%emt 0:00:35]} Be6 {[%emt 0:01:08]} 35. b3 {[%emt 0:00:52]} d3 {[%emt 0:00:24]} 36. Ne3 {[%emt 0:00:15]} Qg6 {[%emt 0:01:50]} 37. Rh1 {[%emt 0:00:34]} Qg5 {[%emt 0:00:53]} 38. Rh8+ {[%emt 0:00:23]} Ke7 {[%emt 0:00:15]} 39. Nd5+ {[%emt 0:00:21]} Rxd5 {[%emt 0:01:09]} 40. Qxg5+ {[%emt 0:00:10]} Kd6 {[%emt 0:00:12]} 41. Rd8+ {[%emt 0:30:47]} Ke5 {[%emt 0:30:37]} 42. Qg7# {[%emt 0:00:16]} 1-0

[Event "DVM U16w 2024"]
[Site "Neumuenster"]
[Date "2024.12.29"]
[Round "6"]
[White "Eger, Nora"]
[Black "Artemenko, Isabella"]
[Result "1/2-1/2"]
[ECO "A08"]
[WhiteElo "1570"]
[BlackElo "1583"]
[Annotator "NA RC"]
[PlyCount "97"]
[EventDate "2024.12.23"]
[EventType "team-tourn"]
[EventRounds "7"]
[EventCountry "GER"]
[SourceTitle "playchess.com"]
[Source "ChessBase"]
[SourceQuality "1"]
[TimeControl "40/5400+30:1800+30"]

1. Nf3 {[%emt 0:00:01]} d5 {[%emt 0:00:13]} 2. g3 {[%emt 0:00:08]} c5 {[%emt 0:00:08]} 3. Bg2 {[%emt 0:00:09]} Nc6 {[%emt 0:00:11]} 4. d3 {[%emt 0:00:12]} e5 {[%emt 0:00:16]} 5. O-O {[%emt 0:00:58]} Nf6 {[%emt 0:00:17]} 6. e4 {[%emt 0:02:46]} d4 {[%emt 0:02:42]} 7. Nbd2 {[%emt 0:01:22]} Bd6 {[%emt 0:08:05]} 8. Nc4 {[%emt 0:01:25]} Bc7 {[%emt 0:00:08]} 9. Qe2 {[%emt 0:05:40]} O-O {[%emt 0:02:04]} 10. Nh4 {[%emt 0:04:32]} Bg4 {[%emt 0:06:28]} 11. Qe1 {[%emt 0:06:40]} Bd7 {[%emt 0:13:36]} 12. f4 {[%emt 0:02:53]} exf4 {[%emt 0:02:45]} 13. Bxf4 {[%emt 0:02:01]} Bxf4 {[%emt 0:03:16]} 14. gxf4 {[%emt 0:01:14]} Nb4 {[%emt 0:12:30]} 15. Qe2 {[%emt 0:03:20]} Rb8 {[%emt 0:05:16]} 16. f5 {[%emt 0:03:08]} Ne8 {[%emt 0:07:36]} 17. Nf3 {[%emt 0:02:23]} Qc7 {[%emt 0:03:06]} 18. a3 {[%emt 0:01:25]} Nc6 {[%emt 0:00:08]} 19. Qf2 {[%emt 0:03:57]} h6 {[%emt 0:02:05]} 20. Qg3 {[%emt 0:02:20]} Qxg3 {[%emt 0:00:22]} 21. hxg3 {[%emt 0:00:01]} b5 {[%emt 0:00:31]} 22. Nce5 {[%emt 0:01:26]} Nxe5 {[%emt 0:01:04]} 23. Nxe5 {[%emt 0:00:02]} Bc8 {[%emt 0:00:19]} 24. Nc6 {[%emt 0:01:54]} Rb7 {[%emt 0:00:09]} 25. Na5 {[%emt 0:05:30]} Rc7 {[%emt 0:00:15]} 26. Nb3 {[%emt 0:01:24]} Nf6 {[%emt 0:00:35]} 27. Bh3 {[%emt 0:01:13]} Rd8 {[%emt 0:01:05]} 28. Rac1 {[%emt 0:03:56]} c4 {[%emt 0:04:17]} 29. Nd2 {[%emt 0:02:05]} Bb7 {[%emt 0:00:34]} 30. g4 {[%emt 0:06:11]} Rdc8 {[%emt 0:00:30]} 31. Rcd1 {[%emt 0:05:44]} Rd8 {[%emt 0:03:58]} 32. Nf3 {[%emt 0:02:58]} c3 {[%emt 0:00:55]} 33. b3 {[%emt 0:08:04]} a5 {[%emt 0:01:00]} 34. g5 {[%emt 0:02:53]} hxg5 {[%emt 0:01:24]} 35. Nxg5 {[%emt 0:01:18]} Nh7 {[%emt 0:00:32]} 36. Nxh7 {[%emt 0:01:20]} Kxh7 {[%emt 0:00:12]} 37. Rf2 {[%emt 0:02:26]} Rc6 {[%emt 0:01:10]} 38. Rh2 {[%emt 0:01:14]} Rh6 {[%emt 0:00:14]} 39. Bg2 {[%emt 0:01:54]} Rxh2 {[%emt 0:00:12]} 40. Kxh2 {[%emt 0:00:01]} Rh8 {[%emt 0:00:19]} 41. Rg1 {[%emt 0:36:03]} f6 {[%emt 0:30:45]} 42. Kg3 {[%emt 0:01:30]} Re8 {[%emt 0:03:00]} 43. Rh1+ {[%emt 0:04:54]} Kg8 {[%emt 0:00:07]} 44. Bf3 {[%emt 0:00:00]} Re5 {[%emt 0:00:00]} 45. Kf4 {[%emt 0:00:00]} Bc6 {[%emt 0:00:00]} 46. Ra1 {[%emt 0:00:00]} Bd7 {[%emt 0:00:00]} 47. Bg4 {[%emt 0:00:00]} Bc6 {[%emt 0:00:00]} 48. Bf3 {[%emt 0:00:00]} Bd7 {[%emt 0:00:00]} 49. Bg4 {[%emt 0:00:00]} 1/2-1/2